Workbook

Sheet Sheet1
A1: measure_id | B1: measure_name | C1: location_id | D1: location_name | E1: sex_id | F1: sex_name | G1: age_id | H1: age_name | I1: cause_id | J1: cause_name | K1: metric_id | L1: metric_name | M1: year | N1: val | O1: year | P1: val | Q1: change
A2: 5 | B2: Prevalence | C2: 69 | D2: Republic of Singapore | E2: 3 | F2: Both | G2: 27 | H2: Age-standardized | I2: 547 | J2: Migraine | K2: 3 | L2: Rate | M2: 1990 | N2: 8316.273266 | O2: 2021 | P2: 9471.090808 | Q2: =(P2-N2)/N2 -> 0.1388623853
A3: 5 | B3: Prevalence | C3: 123 | D3: Republic of Peru | E3: 3 | F3: Both | G3: 27 | H3: Age-standardized | I3: 547 | J3: Migraine | K3: 3 | L3: Rate | M3: 1990 | N3: 8739.192308 | O3: 2021 | P3: 9645.452662 | Q3: =(P3-N3)/N3 -> 0.1037006994
A4: 5 | B4: Prevalence | C4: 76 | D4: Kingdom of Belgium | E4: 3 | F4: Both | G4: 27 | H4: Age-standardized | I4: 547 | J4: Migraine | K4: 3 | L4: Rate | M4: 1990 | N4: 20204.62048 | O4: 2021 | P4: 21751.47385 | Q4: =(P4-N4)/N4 -> 0.07655938796
A5: 5 | B5: Prevalence | C5: 90 | D5: Kingdom of Norway | E5: 3 | F5: Both | G5: 27 | H5: Age-standardized | I5: 547 | J5: Migraine | K5: 3 | L5: Rate | M5: 1990 | N5: 16449.94523 | O5: 2021 | P5: 17700.08544 | Q5: =(P5-N5)/N5 -> 0.0759966182
A6: 5 | B6: Prevalence | C6: 6 | D6: People's Republic of China | E6: 3 | F6: Both | G6: 27 | H6: Age-standardized | I6: 547 | J6: Migraine | K6: 3 | L6: Rate | M6: 1990 | N6: 10948.5163 | O6: 2021 | P6: 11777.51281 | Q6: =(P6-N6)/N6 -> 0.07571770378
A7: 5 | B7: Prevalence | C7: 89 | D7: Kingdom of the Netherlands | E7: 3 | F7: Both | G7: 27 | H7: Age-standardized | I7: 547 | J7: Migraine | K7: 3 | L7: Rate | M7: 1990 | N7: 16015.92422 | O7: 2021 | P7: 17015.11405 | Q7: =(P7-N7)/N7 -> 0.06238727278
A8: 5 | B8: Prevalence | C8: 8 | D8: Taiwan (Province of China) | E8: 3 | F8: Both | G8: 27 | H8: Age-standardized | I8: 547 | J8: Migraine | K8: 3 | L8: Rate | M8: 1990 | N8: 12469.02755 | O8: 2021 | P8: 13042.93476 | Q8: =(P8-N8)/N8 -> 0.04602662089
A9: 5 | B9: Prevalence | C9: 189 | D9: United Republic of Tanzania | E9: 3 | F9: Both | G9: 27 | H9: Age-standardized | I9: 547 | J9: Migraine | K9: 3 | L9: Rate | M9: 1990 | N9: 8987.912515 | O9: 2021 | P9: 9368.603397 | Q9: =(P9-N9)/N9 -> 0.04235587304
A10: 5 | B10: Prevalence | C10: 133 | D10: Bolivarian Republic of Venezuela | E10: 3 | F10: Both | G10: 27 | H10: Age-standardized | I10: 547 | J10: Migraine | K10: 3 | L10: Rate | M10: 1990 | N10: 13648.89963 | O10: 2021 | P10: 14161.1302 | Q10: =(P10-N10)/N10 -> 0.03752907427
A11: 5 | B11: Prevalence | C11: 145 | D11: State of Kuwait | E11: 3 | F11: Both | G11: 27 | H11: Age-standardized | I11: 547 | J11: Migraine | K11: 3 | L11: Rate | M11: 1990 | N11: 14447.65587 | O11: 2021 | P11: 14984.55373 | Q11: =(P11-N11)/N11 -> 0.0371615895
A12: 5 | B12: Prevalence | C12: 97 | D12: Argentine Republic | E12: 3 | F12: Both | G12: 27 | H12: Age-standardized | I12: 547 | J12: Migraine | K12: 3 | L12: Rate | M12: 1990 | N12: 11254.88697 | O12: 2021 | P12: 11636.38937 | Q12: =(P12-N12)/N12 -> 0.03389659987
A13: 5 | B13: Prevalence | C13: 153 | D13: Syrian Arab Republic | E13: 3 | F13: Both | G13: 27 | H13: Age-standardized | I13: 547 | J13: Migraine | K13: 3 | L13: Rate | M13: 1990 | N13: 15128.1933 | O13: 2021 | P13: 15609.44671 | Q13: =(P13-N13)/N13 -> 0.03181169054
A14: 5 | B14: Prevalence | C14: 78 | D14: Kingdom of Denmark | E14: 3 | F14: Both | G14: 27 | H14: Age-standardized | I14: 547 | J14: Migraine | K14: 3 | L14: Rate | M14: 1990 | N14: 15003.69683 | O14: 2021 | P14: 15422.39093 | Q14: =(P14-N14)/N14 -> 0.02790606201
A15: 5 | B15: Prevalence | C15: 122 | D15: Republic of Ecuador | E15: 3 | F15: Both | G15: 27 | H15: Age-standardized | I15: 547 | J15: Migraine | K15: 3 | L15: Rate | M15: 1990 | N15: 12076.41486 | O15: 2021 | P15: 12383.17928 | Q15: =(P15-N15)/N15 -> 0.02540194456
A16: 5 | B16: Prevalence | C16: 142 | D16: Islamic Republic of Iran | E16: 3 | F16: Both | G16: 27 | H16: Age-standardized | I16: 547 | J16: Migraine | K16: 3 | L16: Rate | M16: 1990 | N16: 16084.7163 | O16: 2021 | P16: 16492.35865 | Q16: =(P16-N16)/N16 -> 0.0253434591
A17: 5 | B17: Prevalence | C17: 67 | D17: Japan | E17: 3 | F17: Both | G17: 27 | H17: Age-standardized | I17: 547 | J17: Migraine | K17: 3 | L17: Rate | M17: 1990 | N17: 10554.90356 | O17: 2021 | P17: 10818.39693 | Q17: =(P17-N17)/N17 -> 0.02496407183
A18: 5 | B18: Prevalence | C18: 349 | D18: Greenland | E18: 3 | F18: Both | G18: 27 | H18: Age-standardized | I18: 547 | J18: Migraine | K18: 3 | L18: Rate | M18: 1990 | N18: 15687.73051 | O18: 2021 | P18: 16078.52179 | Q18: =(P18-N18)/N18 -> 0.02491063188
A19: 5 | B19: Prevalence | C19: 135 | D19: Federative Republic of Brazil | E19: 3 | F19: Both | G19: 27 | H19: Age-standardized | I19: 547 | J19: Migraine | K19: 3 | L19: Rate | M19: 1990 | N19: 18185.30342 | O19: 2021 | P19: 18631.33152 | Q19: =(P19-N19)/N19 -> 0.02452684384
A20: 5 | B20: Prevalence | C20: 435 | D20: Republic of South Sudan | E20: 3 | F20: Both | G20: 27 | H20: Age-standardized | I20: 547 | J20: Migraine | K20: 3 | L20: Rate | M20: 1990 | N20: 8911.888662 | O20: 2021 | P20: 9129.910533 | Q20: =(P20-N20)/N20 -> 0.02446416012
A21: 5 | B21: Prevalence | C21: 81 | D21: Federal Republic of Germany | E21: 3 | F21: Both | G21: 27 | H21: Age-standardized | I21: 547 | J21: Migraine | K21: 3 | L21: Rate | M21: 1990 | N21: 18764.10336 | O21: 2021 | P21: 19203.72347 | Q21: =(P21-N21)/N21 -> 0.0234287832
A22: 5 | B22: Prevalence | C22: 141 | D22: Arab Republic of Egypt | E22: 3 | F22: Both | G22: 27 | H22: Age-standardized | I22: 547 | J22: Migraine | K22: 3 | L22: Rate | M22: 1990 | N22: 15336.85581 | O22: 2021 | P22: 15670.28587 | Q22: =(P22-N22)/N22 -> 0.02174044455
A23: 5 | B23: Prevalence | C23: 147 | D23: State of Libya | E23: 3 | F23: Both | G23: 27 | H23: Age-standardized | I23: 547 | J23: Migraine | K23: 3 | L23: Rate | M23: 1990 | N23: 14808.35692 | O23: 2021 | P23: 15082.93529 | Q23: =(P23-N23)/N23 -> 0.0185421224
A24: 5 | B24: Prevalence | C24: 320 | D24: Cook Islands | E24: 3 | F24: Both | G24: 27 | H24: Age-standardized | I24: 547 | J24: Migraine | K24: 3 | L24: Rate | M24: 1990 | N24: 14001.56872 | O24: 2021 | P24: 14255.06964 | Q24: =(P24-N24)/N24 -> 0.01810518005
A25: 5 | B25: Prevalence | C25: 98 | D25: Republic of Chile | E25: 3 | F25: Both | G25: 27 | H25: Age-standardized | I25: 547 | J25: Migraine | K25: 3 | L25: Rate | M25: 1990 | N25: 11656.78919 | O25: 2021 | P25: 11862.86721 | Q25: =(P25-N25)/N25 -> 0.01767879761
A26: 5 | B26: Prevalence | C26: 13 | D26: Malaysia | E26: 3 | F26: Both | G26: 27 | H26: Age-standardized | I26: 547 | J26: Migraine | K26: 3 | L26: Rate | M26: 1990 | N26: 14052.22906 | O26: 2021 | P26: 14260.87835 | Q26: =(P26-N26)/N26 -> 0.01484812765
A27: 5 | B27: Prevalence | C27: 127 | D27: Republic of El Salvador | E27: 3 | F27: Both | G27: 27 | H27: Age-standardized | I27: 547 | J27: Migraine | K27: 3 | L27: Rate | M27: 1990 | N27: 14140.23739 | O27: 2021 | P27: 14345.7151 | Q27: =(P27-N27)/N27 -> 0.01453141852
A28: 5 | B28: Prevalence | C28: 369 | D28: Republic of Nauru | E28: 3 | F28: Both | G28: 27 | H28: Age-standardized | I28: 547 | J28: Migraine | K28: 3 | L28: Rate | M28: 1990 | N28: 13963.68222 | O28: 2021 | P28: 14158.57629 | Q28: =(P28-N28)/N28 -> 0.01395721151
A29: 5 | B29: Prevalence | C29: 168 | D29: Republic of Angola | E29: 3 | F29: Both | G29: 27 | H29: Age-standardized | I29: 547 | J29: Migraine | K29: 3 | L29: Rate | M29: 1990 | N29: 12331.6375 | O29: 2021 | P29: 12500.79172 | Q29: =(P29-N29)/N29 -> 0.01371709273
A30: 5 | B30: Prevalence | C30: 161 | D30: People's Republic of Bangladesh | E30: 3 | F30: Both | G30: 27 | H30: Age-standardized | I30: 547 | J30: Migraine | K30: 3 | L30: Rate | M30: 1990 | N30: 14431.95029 | O30: 2021 | P30: 14622.91251 | Q30: =(P30-N30)/N30 -> 0.01323190712
A31: 5 | B31: Prevalence | C31: 130 | D31: United Mexican States | E31: 3 | F31: Both | G31: 27 | H31: Age-standardized | I31: 547 | J31: Migraine | K31: 3 | L31: Rate | M31: 1990 | N31: 13943.98984 | O31: 2021 | P31: 14127.40867 | Q31: =(P31-N31)/N31 -> 0.01315397075
A32: 5 | B32: Prevalence | C32: 214 | D32: Federal Republic of Nigeria | E32: 3 | F32: Both | G32: 27 | H32: Age-standardized | I32: 547 | J32: Migraine | K32: 3 | L32: Rate | M32: 1990 | N32: 15070.32899 | O32: 2021 | P32: 15259.0804 | Q32: =(P32-N32)/N32 -> 0.01252470397
A33: 5 | B33: Prevalence | C33: 74 | D33: Principality of Andorra | E33: 3 | F33: Both | G33: 27 | H33: Age-standardized | I33: 547 | J33: Migraine | K33: 3 | L33: Rate | M33: 1990 | N33: 17192.05377 | O33: 2021 | P33: 17391.71898 | Q33: =(P33-N33)/N33 -> 0.01161380823
A34: 5 | B34: Prevalence | C34: 125 | D34: Republic of Colombia | E34: 3 | F34: Both | G34: 27 | H34: Age-standardized | I34: 547 | J34: Migraine | K34: 3 | L34: Rate | M34: 1990 | N34: 14220.02594 | O34: 2021 | P34: 14382.08659 | Q34: =(P34-N34)/N34 -> 0.01139664949
A35: 5 | B35: Prevalence | C35: 351 | D35: Guam | E35: 3 | F35: Both | G35: 27 | H35: Age-standardized | I35: 547 | J35: Migraine | K35: 3 | L35: Rate | M35: 1990 | N35: 13901.91595 | O35: 2021 | P35: 14056.47825 | Q35: =(P35-N35)/N35 -> 0.01111805722
A36: 5 | B36: Prevalence | C36: 164 | D36: Federal Democratic Republic of Nepal | E36: 3 | F36: Both | G36: 27 | H36: Age-standardized | I36: 547 | J36: Migraine | K36: 3 | L36: Rate | M36: 1990 | N36: 15558.29533 | O36: 2021 | P36: 15717.90324 | Q36: =(P36-N36)/N36 -> 0.01025870161
A37: 5 | B37: Prevalence | C37: 126 | D37: Republic of Costa Rica | E37: 3 | F37: Both | G37: 27 | H37: Age-standardized | I37: 547 | J37: Migraine | K37: 3 | L37: Rate | M37: 1990 | N37: 13953.34039 | O37: 2021 | P37: 14094.55688 | Q37: =(P37-N37)/N37 -> 0.01012062179
A38: 5 | B38: Prevalence | C38: 129 | D38: Republic of Honduras | E38: 3 | F38: Both | G38: 27 | H38: Age-standardized | I38: 547 | J38: Migraine | K38: 3 | L38: Rate | M38: 1990 | N38: 14023.03262 | O38: 2021 | P38: 14156.31696 | Q38: =(P38-N38)/N38 -> 0.009504673562
A39: 5 | B39: Prevalence | C39: 108 | D39: Belize | E39: 3 | F39: Both | G39: 27 | H39: Age-standardized | I39: 547 | J39: Migraine | K39: 3 | L39: Rate | M39: 1990 | N39: 14117.25367 | O39: 2021 | P39: 14249.40281 | Q39: =(P39-N39)/N39 -> 0.009360824929
A40: 5 | B40: Prevalence | C40: 94 | D40: Swiss Confederation | E40: 3 | F40: Both | G40: 27 | H40: Age-standardized | I40: 547 | J40: Migraine | K40: 3 | L40: Rate | M40: 1990 | N40: 15679.92015 | O40: 2021 | P40: 15818.27165 | Q40: =(P40-N40)/N40 -> 0.008823482794
A41: 5 | B41: Prevalence | C41: 86 | D41: Republic of Italy | E41: 3 | F41: Both | G41: 27 | H41: Age-standardized | I41: 547 | J41: Migraine | K41: 3 | L41: Rate | M41: 1990 | N41: 19087.74643 | O41: 2021 | P41: 19244.26733 | Q41: =(P41-N41)/N41 -> 0.008200072326
A42: 5 | B42: Prevalence | C42: 95 | D42: United Kingdom of Great Britain and Northern Ireland | E42: 3 | F42: Both | G42: 27 | H42: Age-standardized | I42: 547 | J42: Migraine | K42: 3 | L42: Rate | M42: 1990 | N42: 17325.47514 | O42: 2021 | P42: 17467.16024 | Q42: =(P42-N42)/N42 -> 0.008177847852
A43: 5 | B43: Prevalence | C43: 376 | D43: Northern Mariana Islands | E43: 3 | F43: Both | G43: 27 | H43: Age-standardized | I43: 547 | J43: Migraine | K43: 3 | L43: Rate | M43: 1990 | N43: 13844.99548 | O43: 2021 | P43: 13954.78871 | Q43: =(P43-N43)/N43 -> 0.007930174391
A44: 5 | B44: Prevalence | C44: 206 | D44: Republic of the Gambia | E44: 3 | F44: Both | G44: 27 | H44: Age-standardized | I44: 547 | J44: Migraine | K44: 3 | L44: Rate | M44: 1990 | N44: 14416.44172 | O44: 2021 | P44: 14530.0166 | Q44: =(P44-N44)/N44 -> 0.007878148876
A45: 5 | B45: Prevalence | C45: 17 | D45: Democratic Socialist Republic of Sri Lanka | E45: 3 | F45: Both | G45: 27 | H45: Age-standardized | I45: 547 | J45: Migraine | K45: 3 | L45: Rate | M45: 1990 | N45: 15768.45063 | O45: 2021 | P45: 15890.53725 | Q45: =(P45-N45)/N45 -> 0.007742461413
A46: 5 | B46: Prevalence | C46: 128 | D46: Republic of Guatemala | E46: 3 | F46: Both | G46: 27 | H46: Age-standardized | I46: 547 | J46: Migraine | K46: 3 | L46: Rate | M46: 1990 | N46: 14048.1977 | O46: 2021 | P46: 14154.34791 | Q46: =(P46-N46)/N46 -> 0.00755614403
A47: 5 | B47: Prevalence | C47: 173 | D47: Gabonese Republic | E47: 3 | F47: Both | G47: 27 | H47: Age-standardized | I47: 547 | J47: Migraine | K47: 3 | L47: Rate | M47: 1990 | N47: 12379.35047 | O47: 2021 | P47: 12471.35339 | Q47: =(P47-N47)/N47 -> 0.007431967011
A48: 5 | B48: Prevalence | C48: 28 | D48: Solomon Islands | E48: 3 | F48: Both | G48: 27 | H48: Age-standardized | I48: 547 | J48: Migraine | K48: 3 | L48: Rate | M48: 1990 | N48: 13993.26919 | O48: 2021 | P48: 14096.00069 | Q48: =(P48-N48)/N48 -> 0.007341493905
A49: 5 | B49: Prevalence | C49: 396 | D49: Republic of San Marino | E49: 3 | F49: Both | G49: 27 | H49: Age-standardized | I49: 547 | J49: Migraine | K49: 3 | L49: Rate | M49: 1990 | N49: 17609.99047 | O49: 2021 | P49: 17738.70061 | Q49: =(P49-N49)/N49 -> 0.007308927369
A50: 5 | B50: Prevalence | C50: 30 | D50: Republic of Vanuatu | E50: 3 | F50: Both | G50: 27 | H50: Age-standardized | I50: 547 | J50: Migraine | K50: 3 | L50: Rate | M50: 1990 | N50: 14028.09345 | O50: 2021 | P50: 14129.09679 | Q50: =(P50-N50)/N50 -> 0.007200075776
A51: 5 | B51: Prevalence | C51: 198 | D51: Republic of Zimbabwe | E51: 3 | F51: Both | G51: 27 | H51: Age-standardized | I51: 547 | J51: Migraine | K51: 3 | L51: Rate | M51: 1990 | N51: 12439.12093 | O51: 2021 | P51: 12527.60455 | Q51: =(P51-N51)/N51 -> 0.007113334179
A52: 5 | B52: Prevalence | C52: 43 | D52: Republic of Albania | E52: 3 | F52: Both | G52: 27 | H52: Age-standardized | I52: 547 | J52: Migraine | K52: 3 | L52: Rate | M52: 1990 | N52: 13506.04403 | O52: 2021 | P52: 13598.04606 | Q52: =(P52-N52)/N52 -> 0.006811915627
A53: 5 | B53: Prevalence | C53: 190 | D53: Republic of Uganda | E53: 3 | F53: Both | G53: 27 | H53: Age-standardized | I53: 547 | J53: Migraine | K53: 3 | L53: Rate | M53: 1990 | N53: 9117.576519 | O53: 2021 | P53: 9175.872148 | Q53: =(P53-N53)/N53 -> 0.006393763666
A54: 5 | B54: Prevalence | C54: 19 | D54: Democratic Republic of Timor-Leste | E54: 3 | F54: Both | G54: 27 | H54: Age-standardized | I54: 547 | J54: Migraine | K54: 3 | L54: Rate | M54: 1990 | N54: 15674.67184 | O54: 2021 | P54: 15767.46526 | Q54: =(P54-N54)/N54 -> 0.005919959289
A55: 5 | B55: Prevalence | C55: 207 | D55: Republic of Ghana | E55: 3 | F55: Both | G55: 27 | H55: Age-standardized | I55: 547 | J55: Migraine | K55: 3 | L55: Rate | M55: 1990 | N55: 14525.57056 | O55: 2021 | P55: 14609.79494 | Q55: =(P55-N55)/N55 -> 0.005798352312
A56: 5 | B56: Prevalence | C56: 77 | D56: Republic of Cyprus | E56: 3 | F56: Both | G56: 27 | H56: Age-standardized | I56: 547 | J56: Migraine | K56: 3 | L56: Rate | M56: 1990 | N56: 17528.44277 | O56: 2021 | P56: 17622.85506 | Q56: =(P56-N56)/N56 -> 0.005386233861
A57: 5 | B57: Prevalence | C57: 38 | D57: Mongolia | E57: 3 | F57: Both | G57: 27 | H57: Age-standardized | I57: 547 | J57: Migraine | K57: 3 | L57: Rate | M57: 1990 | N57: 13553.38901 | O57: 2021 | P57: 13624.58683 | Q57: =(P57-N57)/N57 -> 0.005253138216
A58: 5 | B58: Prevalence | C58: 187 | D58: Federal Republic of Somalia | E58: 3 | F58: Both | G58: 27 | H58: Age-standardized | I58: 547 | J58: Migraine | K58: 3 | L58: Rate | M58: 1990 | N58: 9053.130674 | O58: 2021 | P58: 9098.357735 | Q58: =(P58-N58)/N58 -> 0.004995737125
A59: 5 | B59: Prevalence | C59: 179 | D59: Federal Democratic Republic of Ethiopia | E59: 3 | F59: Both | G59: 27 | H59: Age-standardized | I59: 547 | J59: Migraine | K59: 3 | L59: Rate | M59: 1990 | N59: 8324.724232 | O59: 2021 | P59: 8365.360704 | Q59: =(P59-N59)/N59 -> 0.004881419509
A60: 5 | B60: Prevalence | C60: 154 | D60: Republic of Tunisia | E60: 3 | F60: Both | G60: 27 | H60: Age-standardized | I60: 547 | J60: Migraine | K60: 3 | L60: Rate | M60: 1990 | N60: 15197.44337 | O60: 2021 | P60: 15266.50914 | Q60: =(P60-N60)/N60 -> 0.004544565531
A61: 5 | B61: Prevalence | C61: 66 | D61: Brunei Darussalam | E61: 3 | F61: Both | G61: 27 | H61: Age-standardized | I61: 547 | J61: Migraine | K61: 3 | L61: Rate | M61: 1990 | N61: 10246.72941 | O61: 2021 | P61: 10292.50254 | Q61: =(P61-N61)/N61 -> 0.004467096562
A62: 5 | B62: Prevalence | C62: 118 | D62: Republic of Suriname | E62: 3 | F62: Both | G62: 27 | H62: Age-standardized | I62: 547 | J62: Migraine | K62: 3 | L62: Rate | M62: 1990 | N62: 14190.7437 | O62: 2021 | P62: 14248.97868 | Q62: =(P62-N62)/N62 -> 0.004103729664
A63: 5 | B63: Prevalence | C63: 163 | D63: Republic of India | E63: 3 | F63: Both | G63: 27 | H63: Age-standardized | I63: 547 | J63: Migraine | K63: 3 | L63: Rate | M63: 1990 | N63: 14850.77433 | O63: 2021 | P63: 14909.21813 | Q63: =(P63-N63)/N63 -> 0.003935403851
A64: 5 | B64: Prevalence | C64: 15 | D64: Republic of the Union of Myanmar | E64: 3 | F64: Both | G64: 27 | H64: Age-standardized | I64: 547 | J64: Migraine | K64: 3 | L64: Rate | M64: 1990 | N64: 15862.41785 | O64: 2021 | P64: 15924.77098 | Q64: =(P64-N64)/N64 -> 0.003930871152
A65: 5 | B65: Prevalence | C65: 162 | D65: Kingdom of Bhutan | E65: 3 | F65: Both | G65: 27 | H65: Age-standardized | I65: 547 | J65: Migraine | K65: 3 | L65: Rate | M65: 1990 | N65: 14374.30178 | O65: 2021 | P65: 14430.26555 | Q65: =(P65-N65)/N65 -> 0.003893320935
A66: 5 | B66: Prevalence | C66: 213 | D66: Republic of the Niger | E66: 3 | F66: Both | G66: 27 | H66: Age-standardized | I66: 547 | J66: Migraine | K66: 3 | L66: Rate | M66: 1990 | N66: 14486.95546 | O66: 2021 | P66: 14539.47286 | Q66: =(P66-N66)/N66 -> 0.003625150506
A67: 5 | B67: Prevalence | C67: 181 | D67: Republic of Madagascar | E67: 3 | F67: Both | G67: 27 | H67: Age-standardized | I67: 547 | J67: Migraine | K67: 3 | L67: Rate | M67: 1990 | N67: 9090.654912 | O67: 2021 | P67: 9122.414975 | Q67: =(P67-N67)/N67 -> 0.003493704537
A68: 5 | B68: Prevalence | C68: 84 | D68: Ireland | E68: 3 | F68: Both | G68: 27 | H68: Age-standardized | I68: 547 | J68: Migraine | K68: 3 | L68: Rate | M68: 1990 | N68: 17571.31225 | O68: 2021 | P68: 17632.30017 | Q68: =(P68-N68)/N68 -> 0.003470880227
A69: 5 | B69: Prevalence | C69: 152 | D69: Kingdom of Saudi Arabia | E69: 3 | F69: Both | G69: 27 | H69: Age-standardized | I69: 547 | J69: Migraine | K69: 3 | L69: Rate | M69: 1990 | N69: 14067.53734 | O69: 2021 | P69: 14115.55608 | Q69: =(P69-N69)/N69 -> 0.003413442713
A70: 5 | B70: Prevalence | C70: 23 | D70: Republic of Kiribati | E70: 3 | F70: Both | G70: 27 | H70: Age-standardized | I70: 547 | J70: Migraine | K70: 3 | L70: Rate | M70: 1990 | N70: 14209.55438 | O70: 2021 | P70: 14255.59074 | Q70: =(P70-N70)/N70 -> 0.003239816927
A71: 5 | B71: Prevalence | C71: 182 | D71: Republic of Malawi | E71: 3 | F71: Both | G71: 27 | H71: Age-standardized | I71: 547 | J71: Migraine | K71: 3 | L71: Rate | M71: 1990 | N71: 9126.630903 | O71: 2021 | P71: 9155.392485 | Q71: =(P71-N71)/N71 -> 0.003151390944
A72: 5 | B72: Prevalence | C72: 150 | D72: Sultanate of Oman | E72: 3 | F72: Both | G72: 27 | H72: Age-standardized | I72: 547 | J72: Migraine | K72: 3 | L72: Rate | M72: 1990 | N72: 14075.9135 | O72: 2021 | P72: 14115.2798 | Q72: =(P72-N72)/N72 -> 0.002796713576
A73: 5 | B73: Prevalence | C73: 27 | D73: Independent State of Samoa | E73: 3 | F73: Both | G73: 27 | H73: Age-standardized | I73: 547 | J73: Migraine | K73: 3 | L73: Rate | M73: 1990 | N73: 14009.96239 | O73: 2021 | P73: 14039.22818 | Q73: =(P73-N73)/N73 -> 0.002088927162
A74: 5 | B74: Prevalence | C74: 195 | D74: Republic of Namibia | E74: 3 | F74: Both | G74: 27 | H74: Age-standardized | I74: 547 | J74: Migraine | K74: 3 | L74: Rate | M74: 1990 | N74: 12454.09161 | O74: 2021 | P74: 12478.69516 | Q74: =(P74-N74)/N74 -> 0.001975539519
A75: 5 | B75: Prevalence | C75: 71 | D75: Australia | E75: 3 | F75: Both | G75: 27 | H75: Age-standardized | I75: 547 | J75: Migraine | K75: 3 | L75: Rate | M75: 1990 | N75: 13314.52445 | O75: 2021 | P75: 13338.06451 | Q75: =(P75-N75)/N75 -> 0.001767998478
A76: 5 | B76: Prevalence | C76: 298 | D76: American Samoa | E76: 3 | F76: Both | G76: 27 | H76: Age-standardized | I76: 547 | J76: Migraine | K76: 3 | L76: Rate | M76: 1990 | N76: 14037.07316 | O76: 2021 | P76: 14058.92669 | Q76: =(P76-N76)/N76 -> 0.001556843587
A77: 5 | B77: Prevalence | C77: 113 | D77: Republic of Guyana | E77: 3 | F77: Both | G77: 27 | H77: Age-standardized | I77: 547 | J77: Migraine | K77: 3 | L77: Rate | M77: 1990 | N77: 14260.60179 | O77: 2021 | P77: 14282.58023 | Q77: =(P77-N77)/N77 -> 0.001541200291
A78: 5 | B78: Prevalence | C78: 212 | D78: Islamic Republic of Mauritania | E78: 3 | F78: Both | G78: 27 | H78: Age-standardized | I78: 547 | J78: Migraine | K78: 3 | L78: Rate | M78: 1990 | N78: 14535.60359 | O78: 2021 | P78: 14556.41858 | Q78: =(P78-N78)/N78 -> 0.001432000469
A79: 5 | B79: Prevalence | C79: 132 | D79: Republic of Panama | E79: 3 | F79: Both | G79: 27 | H79: Age-standardized | I79: 547 | J79: Migraine | K79: 3 | L79: Rate | M79: 1990 | N79: 13857.73164 | O79: 2021 | P79: 13876.05136 | Q79: =(P79-N79)/N79 -> 0.001321985412
A80: 5 | B80: Prevalence | C80: 106 | D80: Commonwealth of the Bahamas | E80: 3 | F80: Both | G80: 27 | H80: Age-standardized | I80: 547 | J80: Migraine | K80: 3 | L80: Rate | M80: 1990 | N80: 14326.25859 | O80: 2021 | P80: 14343.17618 | Q80: =(P80-N80)/N80 -> 0.001180879885
A81: 5 | B81: Prevalence | C81: 25 | D81: Federated States of Micronesia | E81: 3 | F81: Both | G81: 27 | H81: Age-standardized | I81: 547 | J81: Migraine | K81: 3 | L81: Rate | M81: 1990 | N81: 14061.58879 | O81: 2021 | P81: 14078.18702 | Q81: =(P81-N81)/N81 -> 0.001180395171
A82: 5 | B82: Prevalence | C82: 191 | D82: Republic of Zambia | E82: 3 | F82: Both | G82: 27 | H82: Age-standardized | I82: 547 | J82: Migraine | K82: 3 | L82: Rate | M82: 1990 | N82: 10069.67753 | O82: 2021 | P82: 10080.75452 | Q82: =(P82-N82)/N82 -> 0.001100033822
A83: 5 | B83: Prevalence | C83: 29 | D83: Kingdom of Tonga | E83: 3 | F83: Both | G83: 27 | H83: Age-standardized | I83: 547 | J83: Migraine | K83: 3 | L83: Rate | M83: 1990 | N83: 14183.73832 | O83: 2021 | P83: 14199.04391 | Q83: =(P83-N83)/N83 -> 0.001079094219
A84: 5 | B84: Prevalence | C84: 155 | D84: Republic of Turkey | E84: 3 | F84: Both | G84: 27 | H84: Age-standardized | I84: 547 | J84: Migraine | K84: 3 | L84: Rate | M84: 1990 | N84: 14919.25054 | O84: 2021 | P84: 14934.82338 | Q84: =(P84-N84)/N84 -> 0.001043808366
A85: 5 | B85: Prevalence | C85: 26 | D85: Independent State of Papua New Guinea | E85: 3 | F85: Both | G85: 27 | H85: Age-standardized | I85: 547 | J85: Migraine | K85: 3 | L85: Rate | M85: 1990 | N85: 14007.40299 | O85: 2021 | P85: 14021.85443 | Q85: =(P85-N85)/N85 -> 0.001031700641
A86: 5 | B86: Prevalence | C86: 24 | D86: Republic of the Marshall Islands | E86: 3 | F86: Both | G86: 27 | H86: Age-standardized | I86: 547 | J86: Migraine | K86: 3 | L86: Rate | M86: 1990 | N86: 14042.81889 | O86: 2021 | P86: 14055.76297 | Q86: =(P86-N86)/N86 -> 0.0009217578485
A87: 5 | B87: Prevalence | C87: 157 | D87: Republic of Yemen | E87: 3 | F87: Both | G87: 27 | H87: Age-standardized | I87: 547 | J87: Migraine | K87: 3 | L87: Rate | M87: 1990 | N87: 15210.00837 | O87: 2021 | P87: 15221.9501 | Q87: =(P87-N87)/N87 -> 0.0007851226482
A88: 5 | B88: Prevalence | C88: 180 | D88: Republic of Kenya | E88: 3 | F88: Both | G88: 27 | H88: Age-standardized | I88: 547 | J88: Migraine | K88: 3 | L88: Rate | M88: 1990 | N88: 9664.484277 | O88: 2021 | P88: 9671.533665 | Q88: =(P88-N88)/N88 -> 0.0007294117235
A89: 5 | B89: Prevalence | C89: 99 | D89: Eastern Republic of Uruguay | E89: 3 | F89: Both | G89: 27 | H89: Age-standardized | I89: 547 | J89: Migraine | K89: 3 | L89: Rate | M89: 1990 | N89: 11749.88962 | O89: 2021 | P89: 11758.22367 | Q89: =(P89-N89)/N89 -> 0.0007092870893
A90: 5 | B90: Prevalence | C90: 208 | D90: Republic of Guinea | E90: 3 | F90: Both | G90: 27 | H90: Age-standardized | I90: 547 | J90: Migraine | K90: 3 | L90: Rate | M90: 1990 | N90: 14611.41402 | O90: 2021 | P90: 14621.6606 | Q90: =(P90-N90)/N90 -> 0.0007012721914
A91: 5 | B91: Prevalence | C91: 185 | D91: Republic of Rwanda | E91: 3 | F91: Both | G91: 27 | H91: Age-standardized | I91: 547 | J91: Migraine | K91: 3 | L91: Rate | M91: 1990 | N91: 9173.240307 | O91: 2021 | P91: 9178.768264 | Q91: =(P91-N91)/N91 -> 0.0006026177547
A92: 5 | B92: Prevalence | C92: 169 | D92: Central African Republic | E92: 3 | F92: Both | G92: 27 | H92: Age-standardized | I92: 547 | J92: Migraine | K92: 3 | L92: Rate | M92: 1990 | N92: 12455.92788 | O92: 2021 | P92: 12462.33498 | Q92: =(P92-N92)/N92 -> 0.0005143818199
A93: 5 | B93: Prevalence | C93: 205 | D93: Republic of C么te d'Ivoire | E93: 3 | F93: Both | G93: 27 | H93: Age-standardized | I93: 547 | J93: Migraine | K93: 3 | L93: Rate | M93: 1990 | N93: 14352.74203 | O93: 2021 | P93: 14352.21308 | Q93: =(P93-N93)/N93 -> -3.685303382e-05
A94: 5 | B94: Prevalence | C94: 93 | D94: Kingdom of Sweden | E94: 3 | F94: Both | G94: 27 | H94: Age-standardized | I94: 547 | J94: Migraine | K94: 3 | L94: Rate | M94: 1990 | N94: 17833.45297 | O94: 2021 | P94: 17826.53381 | Q94: =(P94-N94)/N94 -> -0.0003879881724
A95: 5 | B95: Prevalence | C95: 374 | D95: Republic of Niue | E95: 3 | F95: Both | G95: 27 | H95: Age-standardized | I95: 547 | J95: Migraine | K95: 3 | L95: Rate | M95: 1990 | N95: 14095.96511 | O95: 2021 | P95: 14087.90984 | Q95: =(P95-N95)/N95 -> -0.0005714595201
A96: 5 | B96: Prevalence | C96: 22 | D96: Republic of Fiji | E96: 3 | F96: Both | G96: 27 | H96: Age-standardized | I96: 547 | J96: Migraine | K96: 3 | L96: Rate | M96: 1990 | N96: 14097.63629 | O96: 2021 | P96: 14089.00289 | Q96: =(P96-N96)/N96 -> -0.0006124011864
A97: 5 | B97: Prevalence | C97: 367 | D97: Principality of Monaco | E97: 3 | F97: Both | G97: 27 | H97: Age-standardized | I97: 547 | J97: Migraine | K97: 3 | L97: Rate | M97: 1990 | N97: 17652.23216 | O97: 2021 | P97: 17639.08371 | Q97: =(P97-N97)/N97 -> -0.0007448603955
A98: 5 | B98: Prevalence | C98: 183 | D98: Republic of Mauritius | E98: 3 | F98: Both | G98: 27 | H98: Age-standardized | I98: 547 | J98: Migraine | K98: 3 | L98: Rate | M98: 1990 | N98: 15791.99829 | O98: 2021 | P98: 15779.3343 | Q98: =(P98-N98)/N98 -> -0.0008019246308
A99: 5 | B99: Prevalence | C99: 44 | D99: Bosnia and Herzegovina | E99: 3 | F99: Both | G99: 27 | H99: Age-standardized | I99: 547 | J99: Migraine | K99: 3 | L99: Rate | M99: 1990 | N99: 13644.36501 | O99: 2021 | P99: 13632.57307 | Q99: =(P99-N99)/N99 -> -0.0008642351134
A100: 5 | B100: Prevalence | C100: 184 | D100: Republic of Mozambique | E100: 3 | F100: Both | G100: 27 | H100: Age-standardized | I100: 547 | J100: Migraine | K100: 3 | L100: Rate | M100: 1990 | N100: 9216.020809 | O100: 2021 | P100: 9206.131293 | Q100: =(P100-N100)/N100 -> -0.001073078805
A101: 5 | B101: Prevalence | C101: 114 | D101: Republic of Haiti | E101: 3 | F101: Both | G101: 27 | H101: Age-standardized | I101: 547 | J101: Migraine | K101: 3 | L101: Rate | M101: 1990 | N101: 14355.29146 | O101: 2021 | P101: 14339.77529 | Q101: =(P101-N101)/N101 -> -0.001080867617
A102: 5 | B102: Prevalence | C102: 209 | D102: Republic of Guinea-Bissau | E102: 3 | F102: Both | G102: 27 | H102: Age-standardized | I102: 547 | J102: Migraine | K102: 3 | L102: Rate | M102: 1990 | N102: 14630.8258 | O102: 2021 | P102: 14614.35392 | Q102: =(P102-N102)/N102 -> -0.001125833358
A103: 5 | B103: Prevalence | C103: 36 | D103: Republic of Kazakhstan | E103: 3 | F103: Both | G103: 27 | H103: Age-standardized | I103: 547 | J103: Migraine | K103: 3 | L103: Rate | M103: 1990 | N103: 13673.33186 | O103: 2021 | P103: 13656.46553 | Q103: =(P103-N103)/N103 -> -0.001233520407
A104: 5 | B104: Prevalence | C104: 91 | D104: Portuguese Republic | E104: 3 | F104: Both | G104: 27 | H104: Age-standardized | I104: 547 | J104: Migraine | K104: 3 | L104: Rate | M104: 1990 | N104: 17715.05629 | O104: 2021 | P104: 17692.88329 | Q104: =(P104-N104)/N104 -> -0.001251646918
A105: 5 | B105: Prevalence | C105: 139 | D105: People's Democratic Republic of Algeria | E105: 3 | F105: Both | G105: 27 | H105: Age-standardized | I105: 547 | J105: Migraine | K105: 3 | L105: Rate | M105: 1990 | N105: 15189.94008 | O105: 2021 | P105: 15170.65855 | Q105: =(P105-N105)/N105 -> -0.001269362006
A106: 5 | B106: Prevalence | C106: 92 | D106: Kingdom of Spain | E106: 3 | F106: Both | G106: 27 | H106: Age-standardized | I106: 547 | J106: Migraine | K106: 3 | L106: Rate | M106: 1990 | N106: 18289.99852 | O106: 2021 | P106: 18266.00883 | Q106: =(P106-N106)/N106 -> -0.001311629086
A107: 5 | B107: Prevalence | C107: 165 | D107: Islamic Republic of Pakistan | E107: 3 | F107: Both | G107: 27 | H107: Age-standardized | I107: 547 | J107: Migraine | K107: 3 | L107: Rate | M107: 1990 | N107: 14590.27249 | O107: 2021 | P107: 14570.78612 | Q107: =(P107-N107)/N107 -> -0.001335572918
A108: 5 | B108: Prevalence | C108: 151 | D108: State of Qatar | E108: 3 | F108: Both | G108: 27 | H108: Age-standardized | I108: 547 | J108: Migraine | K108: 3 | L108: Rate | M108: 1990 | N108: 13522.6624 | O108: 2021 | P108: 13503.71216 | Q108: =(P108-N108)/N108 -> -0.001401368531
A109: 5 | B109: Prevalence | C109: 50 | D109: Montenegro | E109: 3 | F109: Both | G109: 27 | H109: Age-standardized | I109: 547 | J109: Migraine | K109: 3 | L109: Rate | M109: 1990 | N109: 13653.83543 | O109: 2021 | P109: 13632.02613 | Q109: =(P109-N109)/N109 -> -0.001597302082
A110: 5 | B110: Prevalence | C110: 218 | D110: Togolese Republic | E110: 3 | F110: Both | G110: 27 | H110: Age-standardized | I110: 547 | J110: Migraine | K110: 3 | L110: Rate | M110: 1990 | N110: 14622.85138 | O110: 2021 | P110: 14598.13668 | Q110: =(P110-N110)/N110 -> -0.001690142269
A111: 5 | B111: Prevalence | C111: 210 | D111: Republic of Liberia | E111: 3 | F111: Both | G111: 27 | H111: Age-standardized | I111: 547 | J111: Migraine | K111: 3 | L111: Rate | M111: 1990 | N111: 14439.17582 | O111: 2021 | P111: 14413.90777 | Q111: =(P111-N111)/N111 -> -0.001749964777
A112: 5 | B112: Prevalence | C112: 37 | D112: Kyrgyz Republic | E112: 3 | F112: Both | G112: 27 | H112: Age-standardized | I112: 547 | J112: Migraine | K112: 3 | L112: Rate | M112: 1990 | N112: 13647.07407 | O112: 2021 | P112: 13622.20726 | Q112: =(P112-N112)/N112 -> -0.001822134419
A113: 5 | B113: Prevalence | C113: 33 | D113: Republic of Armenia | E113: 3 | F113: Both | G113: 27 | H113: Age-standardized | I113: 547 | J113: Migraine | K113: 3 | L113: Rate | M113: 1990 | N113: 13655.67338 | O113: 2021 | P113: 13628.90224 | Q113: =(P113-N113)/N113 -> -0.00196044106
A114: 5 | B114: Prevalence | C114: 82 | D114: Hellenic Republic | E114: 3 | F114: Both | G114: 27 | H114: Age-standardized | I114: 547 | J114: Migraine | K114: 3 | L114: Rate | M114: 1990 | N114: 18297.01191 | O114: 2021 | P114: 18254.81713 | Q114: =(P114-N114)/N114 -> -0.002306102081
A115: 5 | B115: Prevalence | C115: 136 | D115: Republic of Paraguay | E115: 3 | F115: Both | G115: 27 | H115: Age-standardized | I115: 547 | J115: Migraine | K115: 3 | L115: Rate | M115: 1990 | N115: 17508.15732 | O115: 2021 | P115: 17467.73293 | Q115: =(P115-N115)/N115 -> -0.002308888803
A116: 5 | B116: Prevalence | C116: 522 | D116: Republic of Sudan | E116: 3 | F116: Both | G116: 27 | H116: Age-standardized | I116: 547 | J116: Migraine | K116: 3 | L116: Rate | M116: 1990 | N116: 15255.17558 | O116: 2021 | P116: 15216.83098 | Q116: =(P116-N116)/N116 -> -0.002513546564
A117: 5 | B117: Prevalence | C117: 109 | D117: Republic of Cuba | E117: 3 | F117: Both | G117: 27 | H117: Age-standardized | I117: 547 | J117: Migraine | K117: 3 | L117: Rate | M117: 1990 | N117: 14183.47537 | O117: 2021 | P117: 14147.37647 | Q117: =(P117-N117)/N117 -> -0.002545137575
A118: 5 | B118: Prevalence | C118: 16 | D118: Republic of the Philippines | E118: 3 | F118: Both | G118: 27 | H118: Age-standardized | I118: 547 | J118: Migraine | K118: 3 | L118: Rate | M118: 1990 | N118: 16315.33157 | O118: 2021 | P118: 16273.79316 | Q118: =(P118-N118)/N118 -> -0.002545973896
A119: 5 | B119: Prevalence | C119: 156 | D119: United Arab Emirates | E119: 3 | F119: Both | G119: 27 | H119: Age-standardized | I119: 547 | J119: Migraine | K119: 3 | L119: Rate | M119: 1990 | N119: 13646.77523 | O119: 2021 | P119: 13611.91056 | Q119: =(P119-N119)/N119 -> -0.002554791679
A120: 5 | B120: Prevalence | C120: 41 | D120: Republic of Uzbekistan | E120: 3 | F120: Both | G120: 27 | H120: Age-standardized | I120: 547 | J120: Migraine | K120: 3 | L120: Rate | M120: 1990 | N120: 13613.2448 | O120: 2021 | P120: 13577.31907 | Q120: =(P120-N120)/N120 -> -0.002639027256
A121: 5 | B121: Prevalence | C121: 62 | D121: Russian Federation | E121: 3 | F121: Both | G121: 27 | H121: Age-standardized | I121: 547 | J121: Migraine | K121: 3 | L121: Rate | M121: 1990 | N121: 14421.34322 | O121: 2021 | P121: 14379.09322 | Q121: =(P121-N121)/N121 -> -0.002929685704
A122: 5 | B122: Prevalence | C122: 119 | D122: Republic of Trinidad and Tobago | E122: 3 | F122: Both | G122: 27 | H122: Age-standardized | I122: 547 | J122: Migraine | K122: 3 | L122: Rate | M122: 1990 | N122: 14198.53538 | O122: 2021 | P122: 14155.63168 | Q122: =(P122-N122)/N122 -> -0.003021699104
A123: 5 | B123: Prevalence | C123: 217 | D123: Republic of Sierra Leone | E123: 3 | F123: Both | G123: 27 | H123: Age-standardized | I123: 547 | J123: Migraine | K123: 3 | L123: Rate | M123: 1990 | N123: 14525.1297 | O123: 2021 | P123: 14478.40931 | Q123: =(P123-N123)/N123 -> -0.003216521337
A124: 5 | B124: Prevalence | C124: 143 | D124: Republic of Iraq | E124: 3 | F124: Both | G124: 27 | H124: Age-standardized | I124: 547 | J124: Migraine | K124: 3 | L124: Rate | M124: 1990 | N124: 15087.6299 | O124: 2021 | P124: 15038.57634 | Q124: =(P124-N124)/N124 -> -0.00325124371
A125: 5 | B125: Prevalence | C125: 305 | D125: Bermuda | E125: 3 | F125: Both | G125: 27 | H125: Age-standardized | I125: 547 | J125: Migraine | K125: 3 | L125: Rate | M125: 1990 | N125: 14286.14887 | O125: 2021 | P125: 14239.41349 | Q125: =(P125-N125)/N125 -> -0.003271377267
A126: 5 | B126: Prevalence | C126: 385 | D126: Puerto Rico | E126: 3 | F126: Both | G126: 27 | H126: Age-standardized | I126: 547 | J126: Migraine | K126: 3 | L126: Rate | M126: 1990 | N126: 14366.59237 | O126: 2021 | P126: 14317.03391 | Q126: =(P126-N126)/N126 -> -0.003449562949
A127: 5 | B127: Prevalence | C127: 211 | D127: Republic of Mali | E127: 3 | F127: Both | G127: 27 | H127: Age-standardized | I127: 547 | J127: Migraine | K127: 3 | L127: Rate | M127: 1990 | N127: 14567.44113 | O127: 2021 | P127: 14516.44783 | Q127: =(P127-N127)/N127 -> -0.003500498045
A128: 5 | B128: Prevalence | C128: 87 | D128: Grand Duchy of Luxembourg | E128: 3 | F128: Both | G128: 27 | H128: Age-standardized | I128: 547 | J128: Migraine | K128: 3 | L128: Rate | M128: 1990 | N128: 16975.54346 | O128: 2021 | P128: 16915.46446 | Q128: =(P128-N128)/N128 -> -0.003539150338
A129: 5 | B129: Prevalence | C129: 148 | D129: Kingdom of Morocco | E129: 3 | F129: Both | G129: 27 | H129: Age-standardized | I129: 547 | J129: Migraine | K129: 3 | L129: Rate | M129: 1990 | N129: 15256.4426 | O129: 2021 | P129: 15201.02431 | Q129: =(P129-N129)/N129 -> -0.003632452272
A130: 5 | B130: Prevalence | C130: 72 | D130: New Zealand | E130: 3 | F130: Both | G130: 27 | H130: Age-standardized | I130: 547 | J130: Migraine | K130: 3 | L130: Rate | M130: 1990 | N130: 13965.06854 | O130: 2021 | P130: 13912.65014 | Q130: =(P130-N130)/N130 -> -0.003753537304
A131: 5 | B131: Prevalence | C131: 216 | D131: Republic of Senegal | E131: 3 | F131: Both | G131: 27 | H131: Age-standardized | I131: 547 | J131: Migraine | K131: 3 | L131: Rate | M131: 1990 | N131: 14563.93683 | O131: 2021 | P131: 14508.51403 | Q131: =(P131-N131)/N131 -> -0.003805481963
A132: 5 | B132: Prevalence | C132: 107 | D132: Barbados | E132: 3 | F132: Both | G132: 27 | H132: Age-standardized | I132: 547 | J132: Migraine | K132: 3 | L132: Rate | M132: 1990 | N132: 14347.96444 | O132: 2021 | P132: 14292.50413 | Q132: =(P132-N132)/N132 -> -0.003865378216
A133: 5 | B133: Prevalence | C133: 39 | D133: Republic of Tajikistan | E133: 3 | F133: Both | G133: 27 | H133: Age-standardized | I133: 547 | J133: Migraine | K133: 3 | L133: Rate | M133: 1990 | N133: 13574.14552 | O133: 2021 | P133: 13521.6211 | Q133: =(P133-N133)/N133 -> -0.00386944608
A134: 5 | B134: Prevalence | C134: 202 | D134: Republic of Cameroon | E134: 3 | F134: Both | G134: 27 | H134: Age-standardized | I134: 547 | J134: Migraine | K134: 3 | L134: Rate | M134: 1990 | N134: 14556.97527 | O134: 2021 | P134: 14498.08153 | Q134: =(P134-N134)/N134 -> -0.00404574054
A135: 5 | B135: Prevalence | C135: 196 | D135: Republic of South Africa | E135: 3 | F135: Both | G135: 27 | H135: Age-standardized | I135: 547 | J135: Migraine | K135: 3 | L135: Rate | M135: 1990 | N135: 13043.67176 | O135: 2021 | P135: 12990.87702 | Q135: =(P135-N135)/N135 -> -0.004047537317
A136: 5 | B136: Prevalence | C136: 201 | D136: Burkina Faso | E136: 3 | F136: Both | G136: 27 | H136: Age-standardized | I136: 547 | J136: Migraine | K136: 3 | L136: Rate | M136: 1990 | N136: 14672.16865 | O136: 2021 | P136: 14610.82147 | Q136: =(P136-N136)/N136 -> -0.00418119399
A137: 5 | B137: Prevalence | C137: 176 | D137: Union of the Comoros | E137: 3 | F137: Both | G137: 27 | H137: Age-standardized | I137: 547 | J137: Migraine | K137: 3 | L137: Rate | M137: 1990 | N137: 9126.087086 | O137: 2021 | P137: 9086.736234 | Q137: =(P137-N137)/N137 -> -0.004311908441
A138: 5 | B138: Prevalence | C138: 83 | D138: Republic of Iceland | E138: 3 | F138: Both | G138: 27 | H138: Age-standardized | I138: 547 | J138: Migraine | K138: 3 | L138: Rate | M138: 1990 | N138: 17516.49165 | O138: 2021 | P138: 17439.61283 | Q138: =(P138-N138)/N138 -> -0.004388939358
A139: 5 | B139: Prevalence | C139: 51 | D139: Republic of Poland | E139: 3 | F139: Both | G139: 27 | H139: Age-standardized | I139: 547 | J139: Migraine | K139: 3 | L139: Rate | M139: 1990 | N139: 14325.36408 | O139: 2021 | P139: 14258.61165 | Q139: =(P139-N139)/N139 -> -0.004659737028
A140: 5 | B140: Prevalence | C140: 131 | D140: Republic of Nicaragua | E140: 3 | F140: Both | G140: 27 | H140: Age-standardized | I140: 547 | J140: Migraine | K140: 3 | L140: Rate | M140: 1990 | N140: 14100.70377 | O140: 2021 | P140: 14032.73229 | Q140: =(P140-N140)/N140 -> -0.004820432144
A141: 5 | B141: Prevalence | C141: 115 | D141: Jamaica | E141: 3 | F141: Both | G141: 27 | H141: Age-standardized | I141: 547 | J141: Migraine | K141: 3 | L141: Rate | M141: 1990 | N141: 14296.58815 | O141: 2021 | P141: 14226.30994 | Q141: =(P141-N141)/N141 -> -0.004915732347
A142: 5 | B142: Prevalence | C142: 52 | D142: Romania | E142: 3 | F142: Both | G142: 27 | H142: Age-standardized | I142: 547 | J142: Migraine | K142: 3 | L142: Rate | M142: 1990 | N142: 13679.57057 | O142: 2021 | P142: 13609.33169 | Q142: =(P142-N142)/N142 -> -0.005134582399
A143: 5 | B143: Prevalence | C143: 11 | D143: Republic of Indonesia | E143: 3 | F143: Both | G143: 27 | H143: Age-standardized | I143: 547 | J143: Migraine | K143: 3 | L143: Rate | M143: 1990 | N143: 16354.60089 | O143: 2021 | P143: 16269.49399 | Q143: =(P143-N143)/N143 -> -0.005203850207
A144: 5 | B144: Prevalence | C144: 79 | D144: Republic of Finland | E144: 3 | F144: Both | G144: 27 | H144: Age-standardized | I144: 547 | J144: Migraine | K144: 3 | L144: Rate | M144: 1990 | N144: 17569.60044 | O144: 2021 | P144: 17477.69084 | Q144: =(P144-N144)/N144 -> -0.005231171998
A145: 5 | B145: Prevalence | C145: 48 | D145: Hungary | E145: 3 | F145: Both | G145: 27 | H145: Age-standardized | I145: 547 | J145: Migraine | K145: 3 | L145: Rate | M145: 1990 | N145: 13733.24359 | O145: 2021 | P145: 13659.57353 | Q145: =(P145-N145)/N145 -> -0.005364359987
A146: 5 | B146: Prevalence | C146: 177 | D146: Republic of Djibouti | E146: 3 | F146: Both | G146: 27 | H146: Age-standardized | I146: 547 | J146: Migraine | K146: 3 | L146: Rate | M146: 1990 | N146: 8958.553026 | O146: 2021 | P146: 8909.933424 | Q146: =(P146-N146)/N146 -> -0.005427171264
A147: 5 | B147: Prevalence | C147: 75 | D147: Republic of Austria | E147: 3 | F147: Both | G147: 27 | H147: Age-standardized | I147: 547 | J147: Migraine | K147: 3 | L147: Rate | M147: 1990 | N147: 16561.80976 | O147: 2021 | P147: 16466.12147 | Q147: =(P147-N147)/N147 -> -0.005777646886
A148: 5 | B148: Prevalence | C148: 45 | D148: Republic of Bulgaria | E148: 3 | F148: Both | G148: 27 | H148: Age-standardized | I148: 547 | J148: Migraine | K148: 3 | L148: Rate | M148: 1990 | N148: 13674.50927 | O148: 2021 | P148: 13595.27534 | Q148: =(P148-N148)/N148 -> -0.005794279669
A149: 5 | B149: Prevalence | C149: 57 | D149: Republic of Belarus | E149: 3 | F149: Both | G149: 27 | H149: Age-standardized | I149: 547 | J149: Migraine | K149: 3 | L149: Rate | M149: 1990 | N149: 13092.56767 | O149: 2021 | P149: 13015.64509 | Q149: =(P149-N149)/N149 -> -0.005875286597
A150: 5 | B150: Prevalence | C150: 170 | D150: Republic of the Congo | E150: 3 | F150: Both | G150: 27 | H150: Age-standardized | I150: 547 | J150: Migraine | K150: 3 | L150: Rate | M150: 1990 | N150: 12461.87516 | O150: 2021 | P150: 12387.53307 | Q150: =(P150-N150)/N150 -> -0.005965561923
A151: 5 | B151: Prevalence | C151: 105 | D151: Antigua and Barbuda | E151: 3 | F151: Both | G151: 27 | H151: Age-standardized | I151: 547 | J151: Migraine | K151: 3 | L151: Rate | M151: 1990 | N151: 14364.76629 | O151: 2021 | P151: 14278.9479 | Q151: =(P151-N151)/N151 -> -0.00597422853
A152: 5 | B152: Prevalence | C152: 85 | D152: State of Israel | E152: 3 | F152: Both | G152: 27 | H152: Age-standardized | I152: 547 | J152: Migraine | K152: 3 | L152: Rate | M152: 1990 | N152: 17677.96844 | O152: 2021 | P152: 17572.10523 | Q152: =(P152-N152)/N152 -> -0.005988425885
A153: 5 | B153: Prevalence | C153: 200 | D153: Republic of Benin | E153: 3 | F153: Both | G153: 27 | H153: Age-standardized | I153: 547 | J153: Migraine | K153: 3 | L153: Rate | M153: 1990 | N153: 14655.21783 | O153: 2021 | P153: 14559.28091 | Q153: =(P153-N153)/N153 -> -0.006546263758
A154: 5 | B154: Prevalence | C154: 215 | D154: Democratic Republic of Sao Tome and Principe | E154: 3 | F154: Both | G154: 27 | H154: Age-standardized | I154: 547 | J154: Migraine | K154: 3 | L154: Rate | M154: 1990 | N154: 14553.95382 | O154: 2021 | P154: 14456.37426 | Q154: =(P154-N154)/N154 -> -0.006704677043
A155: 5 | B155: Prevalence | C155: 63 | D155: Ukraine | E155: 3 | F155: Both | G155: 27 | H155: Age-standardized | I155: 547 | J155: Migraine | K155: 3 | L155: Rate | M155: 1990 | N155: 13687.24438 | O155: 2021 | P155: 13592.26155 | Q155: =(P155-N155)/N155 -> -0.006939514411
A156: 5 | B156: Prevalence | C156: 197 | D156: Kingdom of Eswatini | E156: 3 | F156: Both | G156: 27 | H156: Age-standardized | I156: 547 | J156: Migraine | K156: 3 | L156: Rate | M156: 1990 | N156: 12571.43246 | O156: 2021 | P156: 12480.76825 | Q156: =(P156-N156)/N156 -> -0.007211923367
A157: 5 | B157: Prevalence | C157: 54 | D157: Slovak Republic | E157: 3 | F157: Both | G157: 27 | H157: Age-standardized | I157: 547 | J157: Migraine | K157: 3 | L157: Rate | M157: 1990 | N157: 13717.80047 | O157: 2021 | P157: 13618.04629 | Q157: =(P157-N157)/N157 -> -0.007271878526
A158: 5 | B158: Prevalence | C158: 121 | D158: Plurinational State of Bolivia | E158: 3 | F158: Both | G158: 27 | H158: Age-standardized | I158: 547 | J158: Migraine | K158: 3 | L158: Rate | M158: 1990 | N158: 10974.98783 | O158: 2021 | P158: 10894.7665 | Q158: =(P158-N158)/N158 -> -0.007309468629
A159: 5 | B159: Prevalence | C159: 49 | D159: North Macedonia | E159: 3 | F159: Both | G159: 27 | H159: Age-standardized | I159: 547 | J159: Migraine | K159: 3 | L159: Rate | M159: 1990 | N159: 13635.23358 | O159: 2021 | P159: 13534.56654 | Q159: =(P159-N159)/N159 -> -0.007382861525
A160: 5 | B160: Prevalence | C160: 53 | D160: Republic of Serbia | E160: 3 | F160: Both | G160: 27 | H160: Age-standardized | I160: 547 | J160: Migraine | K160: 3 | L160: Rate | M160: 1990 | N160: 13646.05881 | O160: 2021 | P160: 13545.2926 | Q160: =(P160-N160)/N160 -> -0.007384271941
A161: 5 | B161: Prevalence | C161: 46 | D161: Republic of Croatia | E161: 3 | F161: Both | G161: 27 | H161: Age-standardized | I161: 547 | J161: Migraine | K161: 3 | L161: Rate | M161: 1990 | N161: 13686.4777 | O161: 2021 | P161: 13584.20675 | Q161: =(P161-N161)/N161 -> -0.00747240845
A162: 5 | B162: Prevalence | C162: 422 | D162: United States Virgin Islands | E162: 3 | F162: Both | G162: 27 | H162: Age-standardized | I162: 547 | J162: Migraine | K162: 3 | L162: Rate | M162: 1990 | N162: 14380.05797 | O162: 2021 | P162: 14272.59938 | Q162: =(P162-N162)/N162 -> -0.007472750873
A163: 5 | B163: Prevalence | C163: 171 | D163: Democratic Republic of the Congo | E163: 3 | F163: Both | G163: 27 | H163: Age-standardized | I163: 547 | J163: Migraine | K163: 3 | L163: Rate | M163: 1990 | N163: 12452.58303 | O163: 2021 | P163: 12358.98471 | Q163: =(P163-N163)/N163 -> -0.007516378163
A164: 5 | B164: Prevalence | C164: 80 | D164: French Republic | E164: 3 | F164: Both | G164: 27 | H164: Age-standardized | I164: 547 | J164: Migraine | K164: 3 | L164: Rate | M164: 1990 | N164: 17613.31248 | O164: 2021 | P164: 17478.90425 | Q164: =(P164-N164)/N164 -> -0.007631059539
A165: 5 | B165: Prevalence | C165: 393 | D165: Saint Kitts and Nevis | E165: 3 | F165: Both | G165: 27 | H165: Age-standardized | I165: 547 | J165: Migraine | K165: 3 | L165: Rate | M165: 1990 | N165: 14288.07292 | O165: 2021 | P165: 14177.83875 | Q165: =(P165-N165)/N165 -> -0.00771511827
A166: 5 | B166: Prevalence | C166: 47 | D166: Czech Republic | E166: 3 | F166: Both | G166: 27 | H166: Age-standardized | I166: 547 | J166: Migraine | K166: 3 | L166: Rate | M166: 1990 | N166: 13692.28861 | O166: 2021 | P166: 13581.75969 | Q166: =(P166-N166)/N166 -> -0.00807234818
A167: 5 | B167: Prevalence | C167: 117 | D167: Saint Vincent and the Grenadines | E167: 3 | F167: Both | G167: 27 | H167: Age-standardized | I167: 547 | J167: Migraine | K167: 3 | L167: Rate | M167: 1990 | N167: 14223.31533 | O167: 2021 | P167: 14107.4922 | Q167: =(P167-N167)/N167 -> -0.008143188322
A168: 5 | B168: Prevalence | C168: 146 | D168: Lebanese Republic | E168: 3 | F168: Both | G168: 27 | H168: Age-standardized | I168: 547 | J168: Migraine | K168: 3 | L168: Rate | M168: 1990 | N168: 15368.43393 | O168: 2021 | P168: 15238.4362 | Q168: =(P168-N168)/N168 -> -0.008458749728
A169: 5 | B169: Prevalence | C169: 12 | D169: Lao People's Democratic Republic | E169: 3 | F169: Both | G169: 27 | H169: Age-standardized | I169: 547 | J169: Migraine | K169: 3 | L169: Rate | M169: 1990 | N169: 15905.93444 | O169: 2021 | P169: 15770.98502 | Q169: =(P169-N169)/N169 -> -0.008484217941
A170: 5 | B170: Prevalence | C170: 60 | D170: Republic of Lithuania | E170: 3 | F170: Both | G170: 27 | H170: Age-standardized | I170: 547 | J170: Migraine | K170: 3 | L170: Rate | M170: 1990 | N170: 12350.74088 | O170: 2021 | P170: 12244.96263 | Q170: =(P170-N170)/N170 -> -0.008564526329
A171: 5 | B171: Prevalence | C171: 204 | D171: Republic of Chad | E171: 3 | F171: Both | G171: 27 | H171: Age-standardized | I171: 547 | J171: Migraine | K171: 3 | L171: Rate | M171: 1990 | N171: 14631.32706 | O171: 2021 | P171: 14502.42247 | Q171: =(P171-N171)/N171 -> -0.008810177619
A172: 5 | B172: Prevalence | C172: 88 | D172: Republic of Malta | E172: 3 | F172: Both | G172: 27 | H172: Age-standardized | I172: 547 | J172: Migraine | K172: 3 | L172: Rate | M172: 1990 | N172: 17606.88503 | O172: 2021 | P172: 17448.60207 | Q172: =(P172-N172)/N172 -> -0.008989833148
A173: 5 | B173: Prevalence | C173: 178 | D173: State of Eritrea | E173: 3 | F173: Both | G173: 27 | H173: Age-standardized | I173: 547 | J173: Migraine | K173: 3 | L173: Rate | M173: 1990 | N173: 9168.310737 | O173: 2021 | P173: 9085.390348 | Q173: =(P173-N173)/N173 -> -0.009044238512
A174: 5 | B174: Prevalence | C174: 413 | D174: Tokelau | E174: 3 | F174: Both | G174: 27 | H174: Age-standardized | I174: 547 | J174: Migraine | K174: 3 | L174: Rate | M174: 1990 | N174: 14198.02908 | O174: 2021 | P174: 14069.17261 | Q174: =(P174-N174)/N174 -> -0.009075658905
A175: 5 | B175: Prevalence | C175: 193 | D175: Republic of Botswana | E175: 3 | F175: Both | G175: 27 | H175: Age-standardized | I175: 547 | J175: Migraine | K175: 3 | L175: Rate | M175: 1990 | N175: 12533.86208 | O175: 2021 | P175: 12415.02341 | Q175: =(P175-N175)/N175 -> -0.009481408943
A176: 5 | B176: Prevalence | C176: 59 | D176: Republic of Latvia | E176: 3 | F176: Both | G176: 27 | H176: Age-standardized | I176: 547 | J176: Migraine | K176: 3 | L176: Rate | M176: 1990 | N176: 13105.80272 | O176: 2021 | P176: 12978.48491 | Q176: =(P176-N176)/N176 -> -0.009714614002
A177: 5 | B177: Prevalence | C177: 110 | D177: Commonwealth of Dominica | E177: 3 | F177: Both | G177: 27 | H177: Age-standardized | I177: 547 | J177: Migraine | K177: 3 | L177: Rate | M177: 1990 | N177: 14238.37306 | O177: 2021 | P177: 14091.21546 | Q177: =(P177-N177)/N177 -> -0.01033528246
A178: 5 | B178: Prevalence | C178: 144 | D178: Hashemite Kingdom of Jordan | E178: 3 | F178: Both | G178: 27 | H178: Age-standardized | I178: 547 | J178: Migraine | K178: 3 | L178: Rate | M178: 1990 | N178: 15001.57046 | O178: 2021 | P178: 14843.48728 | Q178: =(P178-N178)/N178 -> -0.01053777539
A179: 5 | B179: Prevalence | C179: 111 | D179: Dominican Republic | E179: 3 | F179: Both | G179: 27 | H179: Age-standardized | I179: 547 | J179: Migraine | K179: 3 | L179: Rate | M179: 1990 | N179: 14322.80022 | O179: 2021 | P179: 14169.23504 | Q179: =(P179-N179)/N179 -> -0.01072172838
A180: 5 | B180: Prevalence | C180: 55 | D180: Republic of Slovenia | E180: 3 | F180: Both | G180: 27 | H180: Age-standardized | I180: 547 | J180: Migraine | K180: 3 | L180: Rate | M180: 1990 | N180: 13685.69427 | O180: 2021 | P180: 13531.46517 | Q180: =(P180-N180)/N180 -> -0.01126936574
A181: 5 | B181: Prevalence | C181: 35 | D181: Georgia | E181: 3 | F181: Both | G181: 27 | H181: Age-standardized | I181: 547 | J181: Migraine | K181: 3 | L181: Rate | M181: 1990 | N181: 13711.07856 | O181: 2021 | P181: 13553.70891 | Q181: =(P181-N181)/N181 -> -0.01147755434
A182: 5 | B182: Prevalence | C182: 34 | D182: Republic of Azerbaijan | E182: 3 | F182: Both | G182: 27 | H182: Age-standardized | I182: 547 | J182: Migraine | K182: 3 | L182: Rate | M182: 1990 | N182: 13692.29828 | O182: 2021 | P182: 13532.87395 | Q182: =(P182-N182)/N182 -> -0.01164335807
A183: 5 | B183: Prevalence | C183: 61 | D183: Republic of Moldova | E183: 3 | F183: Both | G183: 27 | H183: Age-standardized | I183: 547 | J183: Migraine | K183: 3 | L183: Rate | M183: 1990 | N183: 13131.86289 | O183: 2021 | P183: 12971.64445 | Q183: =(P183-N183)/N183 -> -0.01220073965
A184: 5 | B184: Prevalence | C184: 149 | D184: Palestine | E184: 3 | F184: Both | G184: 27 | H184: Age-standardized | I184: 547 | J184: Migraine | K184: 3 | L184: Rate | M184: 1990 | N184: 15334.33019 | O184: 2021 | P184: 15147.20261 | Q184: =(P184-N184)/N184 -> -0.01220317972
A185: 5 | B185: Prevalence | C185: 20 | D185: Socialist Republic of Viet Nam | E185: 3 | F185: Both | G185: 27 | H185: Age-standardized | I185: 547 | J185: Migraine | K185: 3 | L185: Rate | M185: 1990 | N185: 15973.61048 | O185: 2021 | P185: 15775.91746 | Q185: =(P185-N185)/N185 -> -0.01237622643
A186: 5 | B186: Prevalence | C186: 116 | D186: Saint Lucia | E186: 3 | F186: Both | G186: 27 | H186: Age-standardized | I186: 547 | J186: Migraine | K186: 3 | L186: Rate | M186: 1990 | N186: 14351.03071 | O186: 2021 | P186: 14161.10779 | Q186: =(P186-N186)/N186 -> -0.01323409598
A187: 5 | B187: Prevalence | C187: 58 | D187: Republic of Estonia | E187: 3 | F187: Both | G187: 27 | H187: Age-standardized | I187: 547 | J187: Migraine | K187: 3 | L187: Rate | M187: 1990 | N187: 13084.28567 | O187: 2021 | P187: 12900.48346 | Q187: =(P187-N187)/N187 -> -0.01404755409
A188: 5 | B188: Prevalence | C188: 186 | D188: Republic of Seychelles | E188: 3 | F188: Both | G188: 27 | H188: Age-standardized | I188: 547 | J188: Migraine | K188: 3 | L188: Rate | M188: 1990 | N188: 15753.17223 | O188: 2021 | P188: 15527.61717 | Q188: =(P188-N188)/N188 -> -0.01431807196
A189: 5 | B189: Prevalence | C189: 112 | D189: Grenada | E189: 3 | F189: Both | G189: 27 | H189: Age-standardized | I189: 547 | J189: Migraine | K189: 3 | L189: Rate | M189: 1990 | N189: 14277.7956 | O189: 2021 | P189: 14061.1338 | Q189: =(P189-N189)/N189 -> -0.01517473777
A190: 5 | B190: Prevalence | C190: 10 | D190: Kingdom of Cambodia | E190: 3 | F190: Both | G190: 27 | H190: Age-standardized | I190: 547 | J190: Migraine | K190: 3 | L190: Rate | M190: 1990 | N190: 16119.94396 | O190: 2021 | P190: 15875.26169 | Q190: =(P190-N190)/N190 -> -0.01517885353
A191: 5 | B191: Prevalence | C191: 40 | D191: Turkmenistan | E191: 3 | F191: Both | G191: 27 | H191: Age-standardized | I191: 547 | J191: Migraine | K191: 3 | L191: Rate | M191: 1990 | N191: 13637.74663 | O191: 2021 | P191: 13422.83568 | Q191: =(P191-N191)/N191 -> -0.01575853829
A192: 5 | B192: Prevalence | C192: 175 | D192: Republic of Burundi | E192: 3 | F192: Both | G192: 27 | H192: Age-standardized | I192: 547 | J192: Migraine | K192: 3 | L192: Rate | M192: 1990 | N192: 9174.810141 | O192: 2021 | P192: 9028.705481 | Q192: =(P192-N192)/N192 -> -0.01592454312
A193: 5 | B193: Prevalence | C193: 101 | D193: Canada | E193: 3 | F193: Both | G193: 27 | H193: Age-standardized | I193: 547 | J193: Migraine | K193: 3 | L193: Rate | M193: 1990 | N193: 16635.51997 | O193: 2021 | P193: 16333.55427 | Q193: =(P193-N193)/N193 -> -0.01815186466
A194: 5 | B194: Prevalence | C194: 102 | D194: United States of America | E194: 3 | F194: Both | G194: 27 | H194: Age-standardized | I194: 547 | J194: Migraine | K194: 3 | L194: Rate | M194: 1990 | N194: 17098.08941 | O194: 2021 | P194: 16750.23956 | Q194: =(P194-N194)/N194 -> -0.02034436944
A195: 5 | B195: Prevalence | C195: 380 | D195: Republic of Palau | E195: 3 | F195: Both | G195: 27 | H195: Age-standardized | I195: 547 | J195: Migraine | K195: 3 | L195: Rate | M195: 1990 | N195: 14038.37776 | O195: 2021 | P195: 13739.05979 | Q195: =(P195-N195)/N195 -> -0.02132140747
A196: 5 | B196: Prevalence | C196: 194 | D196: Kingdom of Lesotho | E196: 3 | F196: Both | G196: 27 | H196: Age-standardized | I196: 547 | J196: Migraine | K196: 3 | L196: Rate | M196: 1990 | N196: 12765.62345 | O196: 2021 | P196: 12483.68595 | Q196: =(P196-N196)/N196 -> -0.02208568218
A197: 5 | B197: Prevalence | C197: 140 | D197: Kingdom of Bahrain | E197: 3 | F197: Both | G197: 27 | H197: Age-standardized | I197: 547 | J197: Migraine | K197: 3 | L197: Rate | M197: 1990 | N197: 14352.44861 | O197: 2021 | P197: 14027.16561 | Q197: =(P197-N197)/N197 -> -0.02266393755
A198: 5 | B198: Prevalence | C198: 7 | D198: Democratic People's Republic of Korea | E198: 3 | F198: Both | G198: 27 | H198: Age-standardized | I198: 547 | J198: Migraine | K198: 3 | L198: Rate | M198: 1990 | N198: 12076.53922 | O198: 2021 | P198: 11798.27174 | Q198: =(P198-N198)/N198 -> -0.02304198906
A199: 5 | B199: Prevalence | C199: 172 | D199: Republic of Equatorial Guinea | E199: 3 | F199: Both | G199: 27 | H199: Age-standardized | I199: 547 | J199: Migraine | K199: 3 | L199: Rate | M199: 1990 | N199: 12583.41027 | O199: 2021 | P199: 12281.68528 | Q199: =(P199-N199)/N199 -> -0.02397799835
A200: 5 | B200: Prevalence | C200: 203 | D200: Republic of Cabo Verde | E200: 3 | F200: Both | G200: 27 | H200: Age-standardized | I200: 547 | J200: Migraine | K200: 3 | L200: Rate | M200: 1990 | N200: 14780.35241 | O200: 2021 | P200: 14422.31071 | Q200: =(P200-N200)/N200 -> -0.02422416518
... 5 more rows
